Cogmind - Beta 14 *** ADVENTURER MODE // 2024.09.25 @ 19:32:34 Player: Ms. V3-11A Result: Destroyed by G-73 Enforcer with Heavy Laser Performance ------------- Evolutions (6) 3000 Regions Visited (20) 4000 Robots Destroyed (274) 1370 Value Destroyed (11460) 11460 Prototype IDs (60) 1200 Alien Tech Used (0) 0 Bonus (520) 520 TOTAL SCORE: 21550 Bonus ------- High Alert Combat Kills 461 Follower Combat Kills 2520 Network Hubs Disabled 200 Registered with UFD 300 Met Data Miner 300 Met Warlord at Base 500 MAIN.C Attacked Warlord 500 Warlord Defense Kills 268 Built Enhanced Grunts 300 Met R17 at Cetus 500 Friendly Fire -5329 Cogmind --------- Core Integrity 0/1150 Matter 120/300 Energy 150/150 System Corruption 6% Temperature Cool (9) Movement Treading (246) Ox1 Location -3/Proximity Caves Parts ------- > --- POWER (2) -------- Micro Antimatter Reactor > --- PROPULSION (4) --- Improved Treads Armored Medium Treads Armored Medium Treads > --- UTILITY (10) ----- Huge Storage Unit 0b10 Decoder Chip [Looter] Improved Transmission Jammer Centrium Medium Armor Plating Improved Hacking Suite Improved System Shield > --- WEAPON (3) ------- Advanced Variable Charge Gun > --- INVENTORY (25) --- Vortex Chain Reactor Experimental Myomer Leg High-capacity Storage Unit Advanced Energy Well (403) High-capacity Matter Pod (200) Advanced Sensor Array Salvage Targeting Computer Experimental Targeting Computer Experimental Armor Integrity Analyzer Experimental Focal Shield Advanced Shield Generator Improved Force Field Advanced Remote Shield Improved Hacking Suite System Mapper Improved System Shield Advanced Remote Datajack Peak State ------------ > --- POWER ------------ Compact Particle Reactor Quantum Reactor > --- PROPULSION ------- Centrium Heavy Treads Centrium Heavy Treads > --- UTILITY ---------- Advanced Cooling System Huge Storage Unit Improved Signal Interpreter 0b10 Decoder Chip [Looter] Centrium Medium Armor Plating Centrium Medium Armor Plating Advanced Shield Generator Improved Hacking Suite Improved System Shield A0-MCA's Component Scanner > --- WEAPON ----------- Wave Gun Quantum Rifle Railgun > --- INVENTORY -------- Micro Antimatter Reactor Heavy Treads Centrium Heavy Treads Improved Cooling System High-capacity Storage Unit Advanced Energy Well High-capacity Matter Pod Advanced Sensor Array Centrium Medium Armor Plating Centrium Medium Armor Plating Centrium Medium Armor Plating Medium Regenerative Plating Advanced Shield Generator Advanced Shield Generator Improved Hacking Suite Improved System Shield Advanced Variable Charge Gun Advanced KE Penetrator Precision Rocket Launcher [Rating: 146] Favorites ----------- Power Cooled Ion Engine Engine Cooled Ion Engine Power Core Neutrino Core Reactor Compact Particle Reactor Propulsion Light Treads Treads Light Treads Leg Flexi-carbon Leg Utility 0b10 Decoder Chip [Looter] Device Improved Cooling System Storage Huge Storage Unit Processor 0b10 Decoder Chip [Looter] Hackware Improved Hacking Suite Protection Medium Armor Plating Weapon Improved Medium Laser Energy Gun Improved Medium Laser Energy Cannon Phase Cannon Ballistic Gun Improved Assault Rifle Ballistic Cannon Heavy Flak Cannon Launcher Precision Rocket Launcher Build | -11 -10 -9 -9 -9 -9 -6 -6 -6 -6 -5 -5 -5 -5 -5 -5 -4 -4 -4 -4 -3 ------- Run | Yrd Mat Mat Sto Rec Scr Fac Low Low Dat Pro Fac Ext Cet Arc Hub Fac Upp Upp War Pro Slots Evolved 12 | . . 2 . . . 6 . . . . 2 . . . . 2 . . . . Power 1 | . . . . . . 1 . . . . . . . . . . . . . . Propulsion 2 | . . 1 . . . 1 . . . . . . . . . . . . . . Utility 8 | . . 1 . . . 3 . . . . 2 . . . . 2 . . . . Weapon 1 | . . . . . . 1 . . . . . . . . . . . . . . Parts Attached 278 | 2 5 17 46 2 8 46 8 . . 3 12 16 13 6 2 40 25 4 13 10 Power 32 | . . 2 4 . 1 6 1 . . 1 2 3 2 . . 6 1 . 2 1 Engine 14 | . . 2 4 . 1 4 1 . . . 2 . . . . . . . . . Core 8 | . . . . . . 1 . . . 1 . 3 . . . 1 1 . 1 . Reactor 10 | . . . . . . 1 . . . . . . 2 . . 5 . . 1 1 Propulsion 76 | 2 1 5 22 . 1 14 2 . . . 1 . 3 . . 4 11 2 5 3 Treads 65 | 2 1 5 22 . 1 14 2 . . . 1 . 3 . . 4 3 . 4 3 Leg 11 | . . . . . . . . . . . . . . . . . 8 2 1 . Wheel . | . . . . . . . . . . . . . . . . . . . . . Hover . | . . . . . . . . . . . . . . . . . . . . . Flight . | . . . . . . . . . . . . . . . . . . . . . Utility 79 | . 3 6 7 2 2 11 3 . . 1 5 6 5 3 1 13 3 . 4 4 Device 34 | . . 3 . 1 . 4 2 . . 1 2 1 2 1 1 8 2 . 3 3 Storage 5 | . 2 . . . . 1 . . . . . . 1 . . . 1 . . . Processor 4 | . . . . . . 1 . . . . 2 . . . . 1 . . . . Hackware 3 | . . . . . . . . . . . 1 1 . 1 . . . . . . Protection 33 | . 1 3 7 1 2 5 1 . . . . 4 2 1 . 4 . . 1 1 Artifact . | . . . . . . . . . . . . . . . . . . . . . Weapon 91 | . 1 4 13 . 4 15 2 . . 1 4 7 3 3 1 17 10 2 2 2 Energy Gun 36 | . 1 2 4 . 3 5 2 . . . 1 2 . 1 1 7 3 2 1 1 Energy Cannon 12 | . . . 4 . . 3 . . . . . . 1 . . 1 3 . . . Ballistic Gun 27 | . . 2 5 . 1 4 . . . 1 . 1 2 2 . 4 3 . 1 1 Ballistic Cannon 6 | . . . . . . . . . . . 2 4 . . . . . . . . Launcher 10 | . . . . . . 3 . . . . 1 . . . . 5 1 . . . Special Weapon . | . . . . . . . . . . . . . . . . . . . . . Impact Weapon . | . . . . . . . . . . . . . . . . . . . . . Slashing Weapon . | . . . . . . . . . . . . . . . . . . . . . Piercing Weapon . | . . . . . . . . . . . . . . . . . . . . . Special Melee Weapon . | . . . . . . . . . . . . . . . . . . . . . Unidentified Prototypes 6 | . . 2 1 . . . . . . . . . . . . . . . 1 2 Corrupted Parts 17 | . . . . . . 1 . . . . . 1 7 2 . 2 1 2 . 1 System Corruption 74 | . . . . . . 3 . . . . . 3 36 4 . 12 7 6 . 3 Parts Lost 80 | . . 2 1 . . 16 2 2 . 1 2 1 . . 2 18 15 2 6 10 Power 14 | . . 1 . . . 3 1 1 . . . . . . . 4 2 . 1 1 Propulsion 21 | . . . . . . 6 1 . . . . . . . . 3 6 . 1 4 Utility 21 | . . 1 1 . . 3 . . . 1 1 1 . . . 5 3 . 2 3 Weapon 24 | . . . . . . 4 . 1 . . 1 . . . 2 6 4 2 2 2 Highest Loss Streak 11 | . . 2 1 . . 5 2 2 . 1 1 1 . . 2 8 11 2 6 5 To Critical Strikes . | . . . . . . . . . . . . . . . . . . . . . Average Slot Usage (%) 89 | . 97 99 99 100 99 90 85 78 73 84 86 87 82 87 87 81 65 63 79 65 Engine 6 | . 14 10 10 11 11 7 6 2 . . 3 5 4 . . . . . 2 . Core 1 | . . . . . . 3 . . . 5 5 5 3 . . 1 1 5 5 4 Reactor 1 | . . . . . . . 3 . . . . . 1 11 11 7 1 . . 2 Treads 22 | . 28 33 32 33 33 25 15 20 20 20 12 11 10 11 11 8 7 10 10 19 Device 10 | . . 10 11 11 11 11 19 20 20 19 16 6 5 5 6 9 6 5 7 10 Storage 7 | . 14 11 11 11 11 6 6 6 6 6 5 5 5 5 5 5 5 5 5 5 Processor 6 | . . . . . . 5 6 6 6 6 17 16 11 11 11 15 11 10 10 5 Hackware 3 | . . . . . . . . . . . . 9 11 10 11 10 10 10 10 10 Protection 7 | . 11 10 10 11 11 5 6 6 6 6 5 4 5 11 9 7 1 . 1 . Energy Gun 8 | . 14 8 10 11 10 8 6 6 6 6 8 5 5 5 5 7 1 5 11 4 Energy Cannon 1 | . . . . . . 3 6 2 . . . . 5 . . . 1 . . . Ballistic Gun 7 | . 14 13 10 11 11 5 6 6 6 12 6 2 5 10 10 4 3 9 3 . Peak Build Rating 146 | 6 8 17 20 21 29 73 70 64 54 66 91 104 137 142 141 146 124 73 110 97 Average Rating 58 | 5 7 13 18 20 25 62 66 57 54 64 84 95 115 140 139 124 82 68 84 82 On Entrance 63 | 6 6 8 16 20 21 29 53 64 54 54 64 86 104 137 141 129 124 69 73 79 Naked Turns . | . . . . . . . . . . . . . . . . . . . . . Heaviest Build 153 | 12 48 58 64 63 68 134 123 111 94 113 129 149 153 149 146 152 132 101 148 120 Greatest Support 160 | 40 40 60 60 60 60 120 113 113 113 113 140 140 160 160 160 160 130 60 111 108 Greatest Overweight (x) 2 | . 1 . 2 1 1 1 1 . . . . 1 1 . . 1 1 1 1 1 Average Overweight (x) . | . . . . 1 1 . . . . . . . . . . . 1 1 . 1 Largest Inventory Capacity 25 | 8 20 20 20 20 20 25 25 25 25 25 25 25 25 25 25 25 25 25 25 25 Average Capacity 22 | 8 17 20 20 20 20 23 25 25 25 25 25 25 25 25 25 25 25 25 25 25 Most Carried 25 | 6 11 20 20 20 20 25 21 21 20 21 25 25 25 25 25 25 25 18 25 23 Average Carried 20 | 5 7 16 19 19 19 21 20 20 20 20 23 24 24 24 24 21 20 18 21 20 Final Capacity 25 | 8 20 20 20 20 20 25 25 25 25 25 25 25 25 25 25 25 25 25 25 25 Final Carried 25 | 4 11 20 20 20 20 21 20 20 20 21 25 25 25 25 24 25 18 18 24 18 Class Distribution -------------------- 23% | Scavenger-Tank 22% | Scavenger-Mutant 16% | Commander-Mutant 12% | Mutant 6% | Commander-Tank 4% | Hacker-Tank 3% | Hacker-Mutant Dominant Class ---------------- Mutant | -10/Materials Scavenger-Mutant | -9/Materials Scavenger-Mutant | -9/Storage Mutant | -9/Recycling Commander-Mutant | -9/Scraptown Scavenger-Tank | -6/Factory Scavenger-Tank | -6/Lower Caves Scavenger-Mutant | -6/Lower Caves Scavenger-Mutant | -6/Data Miner Scavenger-Tank | -5/Proximity Caves Scavenger-Tank | -5/Factory Hacker-Tank | -5/Extension Commander-Tank | -5/Cetus Commander-Tank | -5/Archives Scavenger-Tank | -5/Hub_04(d) Scavenger-Tank | -4/Factory Hacker-Mutant | -4/Upper Caves Hacker-Gunner | -4/Upper Caves Scavenger-Gunner | -4/Warlord Scavenger-Mutant | -3/Proximity Caves Resources | -11 -10 -9 -9 -9 -9 -6 -6 -6 -6 -5 -5 -5 -5 -5 -5 -4 -4 -4 -4 -3 ----------- Run | Yrd Mat Mat Sto Rec Scr Fac Low Low Dat Pro Fac Ext Cet Arc Hub Fac Upp Upp War Pro Matter Collected 7848 | 200 82 274 1260 12 339 1039 127 118 . 344 168 725 379 379 123 1110 580 264 261 64 Remotely . | . . . . . . . . . . . . . . . . . . . . . Salvage Created 12509 | . 244 659 1640 442 . 2608 77 203 . 465 180 732 807 409 572 1924 623 264 127 533 Parts 633 | . 21 49 89 14 . 134 3 5 . 17 14 26 38 24 17 108 35 11 2 26 Haulers Intercepted 7 | . 1 1 5 . . . . . . . . . . . . . . . . . Recyclers Shooed 15 | . . 3 8 . . 2 . . . . 1 . . . . 1 . . . . Parts Field Recycled . | . . . . . . . . . . . . . . . . . . . . . Retrieved Matter . | . . . . . . . . . . . . . . . . . . . . . Parts Self-Destructed 85 | . . . . . . . 3 3 . 14 . . . . . . 33 7 . 25 Prevented 5 | . . . . . . . . . . 1 . . . . . . . 4 . . Kills | -11 -10 -9 -9 -9 -9 -6 -6 -6 -6 -5 -5 -5 -5 -5 -5 -4 -4 -4 -4 -3 ------- Run | Yrd Mat Mat Sto Rec Scr Fac Low Low Dat Pro Fac Ext Cet Arc Hub Fac Upp Upp War Pro Combat Hostiles Destroyed 207 | . 11 18 26 2 . 47 1 1 . 7 6 11 4 1 2 37 17 4 2 10 Guns 145 | . 3 18 26 2 . 24 . 1 . 7 2 4 2 . 2 25 13 4 2 10 Cannons 19 | . . . . . . 9 1 . . . . 7 . 1 . 1 . . . . AOE 33 | . 8 . . . . 7 . . . . 4 . . . . 11 3 . . . Classes Destroyed 21 | . 4 3 2 . . 6 1 . . . . 1 1 . 1 2 . . . . Worker 5 | . . . 1 . . . . . . . . . . . 2 2 . . . . Builder 13 | . . 1 . 2 . 7 . . . . . 1 . . 1 1 . . . . Tunneler 2 | . . . . . . 1 . . . . 1 . . . . . . . . . Hauler 7 | . 1 1 5 . . . . . . . . . . . . . . . . . Recycler 12 | . . 1 3 3 . 1 . . . . . 1 . . 2 1 . . . . Mechanic 3 | . 1 . 1 . . . . . . . . . . . . 1 . . . . Operator 12 | . . . 1 . . 1 . . . . . 1 . 9 . . . . . . Watcher 2 | . . . . . . . . . . . . 1 . . . 1 . . . . Swarmer 59 | . 9 11 3 . . 8 . . . . 4 2 . . . 9 8 . . 5 Saboteur 2 | . . . . . . . . . . . . . . . . 2 . . . . Grunt 66 | . 2 4 13 1 . 17 . . . 2 1 4 . . 1 10 3 4 2 2 Brawler 1 | . . . . . . 1 . . . . . . . . . . . . . . Duelist 2 | . . . . . . . . . . . . . . . . 2 . . . . Protector 1 | . . . . . . . . . . . . . . . 1 . . . . . Sentry 26 | . . 3 10 2 . 5 . . . 1 . 3 . 1 . 1 . . . . Specialist 2 | . . . . . . . . . . . . . . . . 2 . . . . Hunter 17 | . . . . . . 8 . . . 2 1 . . . . 4 . . . 2 Programmer 17 | . . . . . . 5 . 1 . 2 . . . . . 6 2 . . 1 Heavy 3 | . . . . . . 2 . . . . . . . . . 1 . . . . Behemoth 5 | . . . . . . 1 1 . . . . 2 . . . . 1 . . . Cetus Guard 4 | . . . . . . . . . . . . . 4 . . . . . . . Enhanced Grunt 1 | . . . . . . . . . . . . . . . 1 . . . . . Decomposer 2 | . . . . . . . . 2 . . . . . . . . . . . . Tinkerer 1 | . . . . . . . 1 . . . . . . . . . . . . . Wasp 3 | . . . . . . . . . . . . . . . . . 3 . . . Thug 3 | . . . . . . . . . . . . . 2 . 1 . . . . . Savage 2 | . . . . . . . . . . . . . 2 . . . . . . . Butcher 2 | . . . . . . . . . . . . . 2 . . . . . . . Best Kill Streak 11 | . 11 8 4 4 . 9 1 1 . 2 5 5 3 7 7 9 4 3 2 4 Combat Bots Only 11 | . 11 6 4 1 . 9 1 1 . 2 4 2 3 1 2 8 4 3 2 4 Max Kills in Single Turn 6 | . 6 2 1 1 . 3 1 1 . 1 3 2 2 1 5 4 2 1 1 1 Gunslinging 1 | . . . . . . 1 . . . . . . . . . 1 . . . . Exploded 6 | . 6 . . . . 2 . . . . 2 . . . . 4 2 . . . Melee . | . . . . . . . . . . . . . . . . . . . . . Uniques/NPCs Destroyed 2 | . . . . . . . . . . . . . 2 . . . . . . . A7 (-5/Cetus) Revision 17 (-5/Cetus) Combat | -11 -10 -9 -9 -9 -9 -6 -6 -6 -6 -5 -5 -5 -5 -5 -5 -4 -4 -4 -4 -3 -------- Run | Yrd Mat Mat Sto Rec Scr Fac Low Low Dat Pro Fac Ext Cet Arc Hub Fac Upp Upp War Pro Hostile Shots Fired 2168 | . 17 123 209 24 . 404 18 8 . 46 44 68 38 . 47 542 168 36 165 211 Missed 633 | . 7 36 64 7 . 130 4 5 . 10 15 19 11 . 2 144 57 12 48 62 Damage Taken 22186 | . 105 637 1499 188 . 3630 313 34 . 454 450 688 613 24 1203 5748 2163 367 1931 2139 Core 1908 | . 16 105 129 . . 244 90 . . 10 38 100 14 . . 582 212 45 108 215 Absorbed by Shields 1474 | . . . . 4 . . . . . 12 133 182 22 . 342 496 . . . 283 Reduced by Siege Mode 74 | . . . . . . . . . . . 13 . . . 44 17 . . . . Redirected to Shielding 50 | . . 50 . . . . . . . . . . . . . . . . . . Ignored by Resistances 6877 | . 29 203 438 54 . 1033 88 9 . 133 161 239 173 6 403 1727 595 109 673 804 Regen/Repaired (Parts) 410 | . . . 155 . . 10 . . . . . . . . . 119 . . 126 . Core Remaining (%) 75 | 100 93 . . . 41 . . . . 59 . . . . 84 . . . . . Volleys Fired 838 | . 14 48 141 90 . 118 12 12 . 20 22 34 40 39 16 102 59 16 7 48 Largest 3 | . 2 2 2 2 . 3 3 2 . 3 3 3 3 3 3 3 3 3 3 2 Hottest 240 | . 60 79 112 79 . 223 213 91 . 124 166 169 179 179 210 240 221 119 240 240 Shots Fired 1740 | . 28 94 258 180 . 282 21 15 . 50 52 98 114 104 42 213 82 36 19 52 Gun 1488 | . 28 94 224 180 . 218 16 15 . 50 44 38 74 100 42 194 64 36 19 52 Cannon 225 | . . . 34 . . 58 5 . . . 6 60 40 4 . 4 14 . . . Launcher 27 | . . . . . . 6 . . . . 2 . . . . 15 4 . . . Special . | . . . . . . . . . . . . . . . . . . . . . Kinetic 832 | . 14 71 112 90 . 102 6 3 . 32 26 67 34 66 26 80 43 29 6 25 Thermal 712 | . . 17 119 90 . 165 15 12 . 18 24 31 . 30 16 110 25 . 13 27 Explosive 27 | . . . . . . 6 . . . . 2 . . . . 15 4 . . . Electromagnetic 169 | . 14 6 27 . . 9 . . . . . . 80 8 . 8 10 7 . . Robot Hit Streak 34 | . 11 17 34 19 . 16 27 34 . 17 12 13 18 9 4 22 16 9 11 12 Robot Miss Streak 5 | . 1 4 3 2 . 5 1 3 . 2 3 5 4 4 4 3 2 3 1 3 Penetration Max 1 | . . . . . . 1 . . . 1 1 1 1 . 1 1 . 1 . . Secondary Targets 29 | . 1 6 4 . . 5 . . . 1 . . . . . 10 1 1 . . Max Gunslinging Chain 2 | . 1 1 1 . . 2 . . . 1 . . . . . 2 1 1 . . Shots Hit Robots 1165 | . 23 68 169 38 . 210 20 15 . 42 40 70 86 54 14 166 67 30 15 38 Core Hits 601 | . 17 32 52 11 . 108 12 10 . 36 24 60 34 21 16 92 30 17 10 19 Critical Kills 20 | . . 1 . . . 7 . . . . 1 . 1 1 2 1 4 2 . . Critical Parts Destroyed 17 | . . 1 1 . . 5 . . . 1 . . . 2 1 3 1 2 . . Critical Strikes 77 | . . 2 10 5 . 25 . 1 . 3 2 1 2 3 3 6 8 5 1 . Burn 32 | . . . 9 4 . 11 . 1 . 2 1 . . . . 2 1 . 1 . Meltdown 3 | . . . . . . 3 . . . . . . . . . . . . . . Destroy 39 | . . 2 1 1 . 10 . . . 1 1 . 2 3 3 4 7 4 . . Blast 1 | . . . . . . . . . . . . 1 . . . . . . . . Corrupt 2 | . . . . . . 1 . . . . . . . . . . . 1 . . Melee Attacks . | . . . . . . . . . . . . . . . . . . . . . Impact . | . . . . . . . . . . . . . . . . . . . . . Slashing . | . . . . . . . . . . . . . . . . . . . . . Piercing . | . . . . . . . . . . . . . . . . . . . . . Sneak Attacks . | . . . . . . . . . . . . . . . . . . . . . Combat Hostiles . | . . . . . . . . . . . . . . . . . . . . . Follow-up Attacks . | . . . . . . . . . . . . . . . . . . . . . Damage Inflicted 32521 | . 826 950 2955 654 . 5990 526 287 . 918 1388 1985 2087 1386 1345 6646 2438 657 358 1125 Guns 21867 | . 265 901 2855 652 . 3630 356 287 . 918 800 588 994 1297 341 4515 1377 657 309 1125 Cannons 4303 | . . . 42 . . 1375 170 . . . 85 1386 650 89 . 93 413 . . . Explosions 6228 | . 558 49 . . . 985 . . . . 503 . 443 . 1004 2038 648 . . . Melee . | . . . . . . . . . . . . . . . . . . . . . Ramming 123 | . 3 . 58 2 . . . . . . . 11 . . . . . . 49 . Kinetic 11921 | . 109 643 1284 282 . 1426 144 71 . 615 526 1506 734 784 212 1594 937 541 128 385 Thermal 12911 | . 137 266 1591 370 . 3339 382 216 . 303 359 468 391 476 129 2865 698 . 181 740 Explosive 4595 | . 421 . . . . 985 . . . . 503 . . . . 2038 648 . . . Electromagnetic 2971 | . 156 41 22 . . 240 . . . . . . 962 126 1004 149 155 116 . . Impact . | . . . . . . . . . . . . . . . . . . . . . Slashing . | . . . . . . . . . . . . . . . . . . . . . Piercing . | . . . . . . . . . . . . . . . . . . . . . Highest Corruption 58 | . 2 . . . . 5 5 5 5 8 2 5 41 45 58 21 31 37 37 6 Average Corruption 11 | . 1 . . . . 2 5 5 5 7 1 3 14 44 47 13 28 31 27 5 Corruption Purged . | . . . . . . . . . . . . . . . . . . . . . Corruption Blocked . | . . . . . . . . . . . . . . . . . . . . . Effects 394 | . 10 . . . . 15 20 13 3 20 11 42 41 37 19 60 54 26 6 17 Message Errors 99 | . 2 . . . . 3 2 1 . 4 4 12 11 11 6 18 12 5 3 5 Matter Fused 81 | . . . . . . 5 3 5 2 6 2 12 8 4 3 14 7 5 1 4 Heat Flow Errors 55 | . 4 . . . . 2 6 1 . 3 . 4 5 5 . 8 12 1 . 4 Energy Discharges 42 | . 1 . . . . . 4 2 1 1 2 2 4 1 2 6 7 4 2 3 Parts Rejected 3 | . 1 . . . . . . . . . . . . . . 1 1 . . . Parts Fused 5 | . . . . . . . 1 1 . . . . . . . . 1 2 . . Data Loss (minor) 37 | . 1 . . . . 2 1 2 . 1 1 8 4 5 2 3 4 2 . 1 Data Loss (major) 10 | . 1 . . . . . . 1 . . . . 2 . . 2 3 1 . . Misfires 17 | . . . . . . 1 . . . 2 1 3 3 . . 5 1 1 . . Alerts 11 | . . . . . . 1 2 . . 1 1 . 1 . . . 2 3 . . Misdirections 1 | . . . . . . . . . . . . . . . . . . 1 . . Weapon Failures 33 | . . . . . . 1 1 . . 2 . 1 3 11 6 3 4 1 . . Overload Shots 20 | . . . . . . . . . . . 1 . . . . 14 . . 1 4 Overflow Damage 317 | . . 2 9 . . 84 . . . . 29 . 22 . 33 127 11 . . . Projectiles 60 | . . . 8 . . 31 . . . . 10 . . . . . 11 . . . Explosions 256 | . . 2 . . . 53 . . . . 19 . 22 . 33 127 . . . . Melee 1 | . . . 1 . . . . . . . . . . . . . . . . . Knockbacks 14 | . . . . . . . . . . . 1 13 . . . . . . . . Impact . | . . . . . . . . . . . . . . . . . . . . . Kinetic 13 | . . . . . . . . . . . 1 12 . . . . . . . . Secondary 1 | . . . . . . . . . . . . 1 . . . . . . . . Self-Inflicted Damage 150 | . . . . . . . . . . . . . 71 . 79 . . . . . Shots 4 | . . . . . . . . . . . . . 3 . 1 . . . . . Rammed 15 | . 1 . 7 1 . . . . . . . 2 . . . . . . 4 . Targets Rammed 16 | . 1 . 8 1 . . . . . . . 2 . . . . . . 4 . Kicked . | . . . . . . . . . . . . . . . . . . . . . Crushed 1 | . . . 1 . . . . . . . . . . . . . . . . . Highest Temperature 721 | . 209 51 75 21 . 721 228 91 . 221 56 256 419 294 66 562 370 240 155 640 Average Temperature 130 | . 78 24 19 7 . 184 78 64 . 81 10 77 165 101 15 122 109 114 67 278 Received Heat Transfer 5767 | . 30 189 819 97 . 957 72 . . 45 57 200 18 9 30 1279 826 138 555 446 Effects 75 | . . . . . . 41 . . . . . . 6 . . 8 3 . . 17 Shutdowns 27 | . . . . . . 12 . . . . . . 4 . . 3 1 . . 7 Energy Bleed 8 | . . . . . . 4 . . . . . . 1 . . 1 . . . 2 Interference 17 | . . . . . . 11 . . . . . . 1 . . . 2 . . 3 Matter Decay 7 | . . . . . . 3 . . . . . . . . . 1 . . . 3 Short Circuit 4 | . . . . . . 2 . . . . . . . . . 1 . . . 1 Damage (minor) 4 | . . . . . . 2 . . . . . . . . . 1 . . . 1 Damage (major) 7 | . . . . . . 7 . . . . . . . . . . . . . . Damage (core) 1 | . . . . . . . . . . . . . . . . 1 . . . . Siege Activations 3 | . . . . . . . . . . . 1 . . . 1 1 . . . . Total Turns 30 | . . . . . . . . . . . 5 . . . 10 15 . . . . Longest Duration 15 | . . . . . . . . . . . 5 . . . 10 15 . . . . Robots Corrupted 5 | . . . . . . . . . . . . . 3 . 2 . . . . . Combat Hostiles 2 | . . . . . . . . . . . . . 2 . . . . . . . Parts Fried 26 | . . . . . . 4 . . . . . 2 10 . 10 . . . . . Impact Corruptions 1 | . . . 1 . . . . . . . . . . . . . . . . . Robots Melted 8 | . . . . . . 7 . . . . . . . . . . 1 . . . Combat Hostiles 8 | . . . . . . 7 . . . . . . . . . . 1 . . . Parts Melted 66 | . 1 1 11 4 . 33 . . . . . 2 . 1 . 7 4 . . 2 Heat Transferred 23271 | . 150 581 4033 1073 . 6813 594 518 . 777 802 895 351 629 167 3597 994 . 444 853 Parts Sabotaged . | . . . . . . . . . . . . . . . . . . . . . Parts Stolen . | . . . . . . . . . . . . . . . . . . . . . Parts Stripped . | . . . . . . . . . . . . . . . . . . . . . Power Chain Reactions 8 | . 2 1 . . . . . . . . . . 5 . . . . . . . Alert | -11 -10 -9 -9 -9 -9 -6 -6 -6 -6 -5 -5 -5 -5 -5 -5 -4 -4 -4 -4 -3 ------- Run | Yrd Mat Mat Sto Rec Scr Fac Low Low Dat Pro Fac Ext Cet Arc Hub Fac Upp Upp War Pro Peak Influence 888 | . 366 321 417 77 . 446 . . . . 416 296 153 268 888 759 . . . . Initial 358 | . . . 115 8 . . . . . . . 175 3 27 19 358 . . . . Average 168 | . 121 183 194 27 . 171 . . . . 149 146 73 167 304 476 . . . . Maximum Alert Level 3 | . 1 1 2 . . 2 . . . . 2 1 . 1 3 3 . . . . Low Security (%) 65 | 100 79 45 52 100 . 63 . . . . 62 73 100 58 49 . . . . . Level 1 26 | . 20 54 45 . . 35 . . . . 30 26 . 41 28 21 . . . . Level 2 7 | . . . 2 . . 1 . . . . 6 . . . . 70 . . . . Level 3 1 | . . . . . . . . . . . . . . . 22 8 . . . . Level 4 . | . . . . . . . . . . . . . . . . . . . . . Level 5 . | . . . . . . . . . . . . . . . . . . . . . High Security . | . . . . . . . . . . . . . . . . . . . . . Max Security . | . . . . . . . . . . . . . . . . . . . . . Squads Dispatched 37 | . . . 4 . . 11 . . . . 6 2 . . 2 12 . . . . Investigation 8 | . . . 2 . . 2 . . . . 3 . . . . 1 . . . . Extermination 9 | . . . . . . 4 . . . . 1 . . . . 4 . . . . Reinforcement 14 | . . . 1 . . 5 . . . . 1 2 . . 1 4 . . . . Assault 4 | . . . . . . . . . . . . . . . 1 3 . . . . Garrison 2 | . . . 1 . . . . . . . 1 . . . . . . . . . Intercept . | . . . . . . . . . . . . . . . . . . . . . Searches Triggered . | . . . . . . . . . . . . . . . . . . . . . Data Miner Redirects 6 | . . . . . . . . . . . 2 . . . 1 3 . . . . Construction Impeded 4 | . . . . . . 2 . . . . . 1 . . 1 . . . . . Haulers Reinforced 1 | . . . . . . . . . . . . . . . . 1 . . . . Active Scanning Responses . | . . . . . . . . . . . . . . . . . . . . . Cargo Convoy Interrupts . | . . . . . . . . . . . . . . . . . . . . . Stealth | -11 -10 -9 -9 -9 -9 -6 -6 -6 -6 -5 -5 -5 -5 -5 -5 -4 -4 -4 -4 -3 --------- Run | Yrd Mat Mat Sto Rec Scr Fac Low Low Dat Pro Fac Ext Cet Arc Hub Fac Upp Upp War Pro Distress Signals 22 | . 1 2 4 . . 4 . . . . 2 4 2 . 2 1 . . . . Communications Jammed 5 | . . . . . . . . . . 1 . . . . . . . . . 4 Distress Signals 1 | . . . . . . . . . . 1 . . . . . . . . . . Times Spotted 378 | . 16 26 45 4 . 54 1 1 . 7 27 24 11 20 17 60 18 4 27 16 Peak Tracking Total 17 | . 5 6 5 1 . 9 1 1 . 2 6 4 5 2 17 7 4 4 12 5 Tactical Retreats 6 | . . 1 2 . . . . . . . 1 . . . 1 . 1 . . . Traps | -11 -10 -9 -9 -9 -9 -6 -6 -6 -6 -5 -5 -5 -5 -5 -5 -4 -4 -4 -4 -3 ------- Run | Yrd Mat Mat Sto Rec Scr Fac Low Low Dat Pro Fac Ext Cet Arc Hub Fac Upp Upp War Pro Traps Triggered 17 | . 5 . 4 . . 1 . . . . 1 1 . . 3 2 . . . . Indirectly 1 | . . . . . . . . . . . . . . . 1 . . . . . Trap Hack Attempts . | . . . . . . . . . . . . . . . . . . . . . Triggered . | . . . . . . . . . . . . . . . . . . . . . Disarmed . | . . . . . . . . . . . . . . . . . . . . . Reprogrammed . | . . . . . . . . . . . . . . . . . . . . . Reused . | . . . . . . . . . . . . . . . . . . . . . Traps Extracted . | . . . . . . . . . . . . . . . . . . . . . Installed . | . . . . . . . . . . . . . . . . . . . . . Triggered 12 | . . . . . . . . . . 1 . . . . . . . . 11 . Machines | -11 -10 -9 -9 -9 -9 -6 -6 -6 -6 -5 -5 -5 -5 -5 -5 -4 -4 -4 -4 -3 ---------- Run | Yrd Mat Mat Sto Rec Scr Fac Low Low Dat Pro Fac Ext Cet Arc Hub Fac Upp Upp War Pro Machines Disabled 72 | . 2 . 3 23 . 6 . . . . . 3 . 6 24 4 . . 1 . Max in Single Turn 13 | . 2 . 1 1 . 2 . . . . . 1 . 1 13 1 . . 1 . Garrison Access 3 | . . . 1 . . . . . . . 1 . . . 1 . . . . . Network Hub 1 | . . . . . . . . . . . . . . . 1 . . . . . Machines Repaired . | . . . . . . . . . . . . . . . . . . . . . Machines Dismantled . | . . . . . . . . . . . . . . . . . . . . . Machines Sabotaged . | . . . . . . . . . . . . . . . . . . . . . Overloaded Fab Kills . | . . . . . . . . . . . . . . . . . . . . . Hacking | -11 -10 -9 -9 -9 -9 -6 -6 -6 -6 -5 -5 -5 -5 -5 -5 -4 -4 -4 -4 -3 --------- Run | Yrd Mat Mat Sto Rec Scr Fac Low Low Dat Pro Fac Ext Cet Arc Hub Fac Upp Upp War Pro Machines Accessed 64 | . 9 4 13 6 2 9 . . 2 1 8 2 . . 2 5 . . . 1 Terminals 45 | . 8 4 9 6 . 6 . . . 1 2 2 . . 2 4 . . . 1 Fabricators 4 | . . . . . . 2 . . . . 2 . . . . . . . . . Repair Stations 3 | . 1 . 2 . . . . . . . . . . . . . . . . . Recycling Units 3 | . . . 1 . . . . . . . 1 . . . . 1 . . . . Scanalyzers 3 | . . . . . . 1 . . . . 2 . . . . . . . . . Garrison Access 2 | . . . 1 . . . . . . . 1 . . . . . . . . . Total Hacks 206 | . 26 12 37 22 8 28 . . 19 1 24 5 . . 8 15 . . . 1 Successful 124 | . 12 3 22 13 8 18 . . 19 1 15 2 . . 4 6 . . . 1 Failed 81 | . 14 9 15 8 . 10 . . . . 9 3 . . 4 9 . . . . Catastrophic 6 | . . . . 1 . 2 . . . . 1 . . . . 2 . . . . Database Lockouts 1 | . . . . 1 . . . . . . . . . . . . . . . . Manual 90 | . 19 9 13 15 . 12 . . . . 6 . 1 . 4 11 . . . . Terminals 135 | . 23 12 26 22 . 20 . . . 1 4 5 . . 8 13 . . . 1 Fabricators 9 | . . . . . . 3 . . . . 6 . . . . . . . . . Repair Stations 10 | . 3 . 7 . . . . . . . . . . . . . . . . . Recycling Units 7 | . . . 2 . . . . . . . 3 . . . . 2 . . . . Scanalyzers 14 | . . . . . . 5 . . . . 9 . . . . . . . . . Garrison Access 4 | . . . 2 . . . . . . . 2 . . . . . . . . . Terminal Hacks 70 | . 4 3 7 7 8 7 . . 19 1 2 2 . . 4 5 . . . 1 Record 11 | . . . . . 8 . . . . 1 . . . . 1 . . . . 1 Part Schematic 13 | . . . 2 . . 1 . . 10 . . . . . . . . . . . Robot Schematic 8 | . . . 1 . . 1 . . 6 . . . . . . . . . . . Robot Analysis 2 | . 1 . 1 . . . . . . . . . . . . . . . . . Prototype ID Bank 18 | . 3 3 . 6 . 1 . . 3 . . 1 . . 1 . . . . . Open Door 2 | . . . 2 . . . . . . . . . . . . . . . . . Branch Access Points 4 | . . . . . . 1 . . . . 1 . . . . 2 . . . . Machine Index 1 | . . . . . . . . . . . . . . . . 1 . . . . Terminal Index 3 | . . . . . . 1 . . . . 1 . . . 1 . . . . . Fabricator Index 1 | . . . . . . 1 . . . . . . . . . . . . . . Scanalyzer Index 2 | . . . 1 . . 1 . . . . . . . . . . . . . . Unreport Threat 3 | . . . . . . . . . . . . 1 . . . 2 . . . . Registered Components 1 | . . . . 1 . . . . . . . . . . . . . . . . Zone Layout 1 | . . . . . . . . . . . . . . . 1 . . . . . Fabricator Hacks 7 | . . . . . . 3 . . . . 4 . . . . . . . . . Load Schematic 3 | . . . . . . 1 . . . . 2 . . . . . . . . . Build 4 | . . . . . . 2 . . . . 2 . . . . . . . . . Repair Station Hacks 5 | . 1 . 4 . . . . . . . . . . . . . . . . . Scan Component 3 | . 1 . 2 . . . . . . . . . . . . . . . . . Repair 2 | . . . 2 . . . . . . . . . . . . . . . . . Recycling Unit Hacks 1 | . . . 1 . . . . . . . . . . . . . . . . . Retrieve Components 1 | . . . 1 . . . . . . . . . . . . . . . . . Scanalyzer 11 | . . . . . . 4 . . . . 7 . . . . . . . . . Insert Component 6 | . . . . . . 2 . . . . 4 . . . . . . . . . Analyze 5 | . . . . . . 2 . . . . 3 . . . . . . . . . Garrison Access Hacks 2 | . . . 1 . . . . . . . 1 . . . . . . . . . Seal Access 2 | . . . 1 . . . . . . . 1 . . . . . . . . . Unauthorized Hacks 28 | . 7 . 9 6 . 4 . . . . 1 . . . . 1 . . . . Terminals 23 | . 7 . 6 6 . 4 . . . . . . . . . . . . . . Track 1 | . . . . . . 1 . . . . . . . . . . . . . . Botnet 4 | . 2 . 1 . . 1 . . . . . . . . . . . . . . Operators 1 | . . . . . . 1 . . . . . . . . . . . . . . Skim 17 | . 5 . 5 6 . 1 . . . . . . . . . . . . . . Fabricators . | . . . . . . . . . . . . . . . . . . . . . Repair Stations 4 | . . . 2 . . . . . . . 1 . . . . 1 . . . . Patch 2 | . . . 2 . . . . . . . . . . . . . . . . . Recycling Units 1 | . . . 1 . . . . . . . . . . . . . . . . . Reject 1 | . . . 1 . . . . . . . . . . . . . . . . . Scrapoids 2 | . . . . . . . . . . . 1 . . . . 1 . . . . Scanalyzers . | . . . . . . . . . . . . . . . . . . . . . Garrison Access . | . . . . . . . . . . . . . . . . . . . . . Data Cores Recovered . | . . . . . . . . . . . . . . . . . . . . . Used . | . . . . . . . . . . . . . . . . . . . . . Hacking Detections 52 | . 8 4 12 5 . 8 . . . 1 6 2 . . 2 3 . . . 1 Full Trace Events 6 | . . . . 2 . 2 . . . . 2 . . . . . . . . . Feedback Events . | . . . . . . . . . . . . . . . . . . . . . Feedback Blocked . | . . . . . . . . . . . . . . . . . . . . . Robot Schematics Acquired 8 | . . . 1 . . 1 . . 6 . . . . . . . . . . . Robots Built . | . . . . . . . . . . . . . . . . . . . . . Authchips . | . . . . . . . . . . . . . . . . . . . . . Time . | . . . . . . . . . . . . . . . . . . . . . Total Robot Build Rating . | . . . . . . . . . . . . . . . . . . . . . Part Schematics Acquired 18 | . . . 2 . . 3 . . 10 . 3 . . . . . . . . . Parts Built 3 | . . . . . . 1 . . . . 2 . . . . . . . . . Authchips . | . . . . . . . . . . . . . . . . . . . . . Time 417 | . . . . . . 258 . . . . 159 . . . . . . . . . Total Part Build Rating 18 | . . . . . . 6 . . . . 12 . . . . . . . . . Parts Repaired 2 | . . . 2 . . . . . . . . . . . . . . . . . Time 77 | . . . 77 . . . . . . . . . . . . . . . . . Parts Recycled . | . . . . . . . . . . . . . . . . . . . . . Recycled Matter . | . . . . . . . . . . . . . . . . . . . . . Retrieved Matter . | . . . . . . . . . . . . . . . . . . . . . Retrieved Components 9 | . . . 9 . . . . . . . . . . . . . . . . . Parts Scanalyzed 6 | . . . . . . 2 . . . . 4 . . . . . . . . . Part Schematics Acquired 5 | . . . . . . 2 . . . . 3 . . . . . . . . . Parts Damaged . | . . . . . . . . . . . . . . . . . . . . . Bothacking | -11 -10 -9 -9 -9 -9 -6 -6 -6 -6 -5 -5 -5 -5 -5 -5 -4 -4 -4 -4 -3 ------------ Run | Yrd Mat Mat Sto Rec Scr Fac Low Low Dat Pro Fac Ext Cet Arc Hub Fac Upp Upp War Pro Used RIF Installer . | . . . . . . . . . . . . . . . . . . . . . Robots Hacked . | . . . . . . . . . . . . . . . . . . . . . Non-combat . | . . . . . . . . . . . . . . . . . . . . . Combat . | . . . . . . . . . . . . . . . . . . . . . Robot Hacks Applied . | . . . . . . . . . . . . . . . . . . . . . Relay Couplers Released 2 | . . . . . . . . . . . . . . . 2 . . . . . Machine Destruction 2 | . . . . . . . . . . . . . . . 2 . . . . . Fabnet Peak Effective % . | . . . . . . . . . . . . . . . . . . . . . Robots Rewired 16 | . . . . 9 . . . . . . . 7 . . . . . . . . Allies Hacked . | . . . . . . . . . . . . . . . . . . . . . Hacks Repelled . | . . . . . . . . . . . . . . . . . . . . . Allies | -11 -10 -9 -9 -9 -9 -6 -6 -6 -6 -5 -5 -5 -5 -5 -5 -4 -4 -4 -4 -3 -------- Run | Yrd Mat Mat Sto Rec Scr Fac Low Low Dat Pro Fac Ext Cet Arc Hub Fac Upp Upp War Pro Total Allies 44 | . . . . 9 . . . . . . 5 17 5 . 3 5 . . . . Largest Group 18 | . . . . 9 7 . . . . . 5 16 18 11 10 5 . . . . Highest-Rated Group 970 | . . . . 111 87 . . . . . 238 572 970 665 569 235 . . . . Highest-Rated Ally 159 | . . . . 27 27 . . . . . 50 159 159 96 96 47 . . . . Total Orders 7 | . . . . . 1 . . . . . . . 4 2 . . . . . . STAY 4 | . . . . . 1 . . . . . . . 2 1 . . . . . . FOLLOW 3 | . . . . . . . . . . . . . 2 1 . . . . . . Ally Attacks 470 | . . . . 6 . . . . . . 96 121 38 38 82 89 . . . . Total Damage 11297 | . . . . 115 . . . . . . 1877 2559 1551 1184 2367 1644 . . . . Kills 69 | . . . . 2 . . . . . . 22 13 8 3 10 11 . . . . Allies Corrupted 5 | . . . . . . . . . . . 1 . 1 . 3 . . . . . Allies Melted 1 | . . . . . . . . . . . . . . . . . . . 1 . Intel | -11 -10 -9 -9 -9 -9 -6 -6 -6 -6 -5 -5 -5 -5 -5 -5 -4 -4 -4 -4 -3 ------- Run | Yrd Mat Mat Sto Rec Scr Fac Low Low Dat Pro Fac Ext Cet Arc Hub Fac Upp Upp War Pro Robot Analysis Total 2 | . 1 . 1 . . . . . . . . . . . . . . . . . Derelict Logs Recovered 4 | . . . . . . . 1 2 . 1 . . . . . . . . . . Drone Launches . | . . . . . . . . . . . . . . . . . . . . . Drone Recoveries . | . . . . . . . . . . . . . . . . . . . . . Decoded 0b10 Intel 338 | . . . . . . 124 . . . . 79 35 5 . 16 79 . . . . Items 338 | . . . . . . 124 . . . . 79 35 5 . 16 79 . . . . Exploration | -11 -10 -9 -9 -9 -9 -6 -6 -6 -6 -5 -5 -5 -5 -5 -5 -4 -4 -4 -4 -3 ------------- Run | Yrd Mat Mat Sto Rec Scr Fac Low Low Dat Pro Fac Ext Cet Arc Hub Fac Upp Upp War Pro Turns Passed 22994 | 5 1383 724 2537 2497 2640 2430 687 513 195 450 1132 1751 989 468 216 1471 974 480 833 619 Spaces Moved 9273 | 1 677 328 877 872 1067 920 312 230 86 236 596 920 268 191 102 565 306 173 356 190 Core . | . . . . . . . . . . . . . . . . . . . . . Treads 9072 | 1 677 328 877 872 1067 920 312 230 86 236 596 920 268 191 102 565 195 173 266 190 Legs 201 | . . . . . . . . . . . . . . . . . 111 . 90 . Wheels . | . . . . . . . . . . . . . . . . . . . . . Hover . | . . . . . . . . . . . . . . . . . . . . . Flight . | . . . . . . . . . . . . . . . . . . . . . Fastest Speed 155 | 160 160 160 160 240 240 155 163 163 163 163 160 160 160 160 160 160 190 225 170 245 Average Speed 202 | 160 195 160 217 240 240 209 206 163 163 163 160 163 212 160 160 187 213 225 216 249 Slowest Speed 320 | 160 240 160 320 240 240 243 240 163 163 163 163 240 240 160 160 240 230 225 250 250 Overloaded Moves . | . . . . . . . . . . . . . . . . . . . . . Propulsion Burnouts . | . . . . . . . . . . . . . . . . . . . . . Robots Hopped . | . . . . . . . . . . . . . . . . . . . . . Cave-ins Triggered . | . . . . . . . . . . . . . . . . . . . . . Exploration Rate (%) 52 | 2 96 38 83 99 84 33 52 49 70 50 15 87 56 83 18 19 49 29 50 42 Regions Visited 20 Branch Regions 15 Pre-discovered Areas 5 | . . . 3 . 1 . . 1 . . . . . . . . . . . . Known Exits Taken 12 | . 1 1 1 1 . 1 1 . . . 1 . . . 1 1 1 1 1 . Unknown Exits Taken 8 | 1 . . . . 1 . . 1 1 1 . 1 1 1 . . . . . . Scrap Searched 9 | . . . . . 3 . 2 1 . 1 . . . . . . 2 . . . Spaces Dug 157 | . . . . . . . . . . . 3 . . . 154 . . . . . Terrain Destroyed 534 | . 44 2 . . . 69 . . . 3 19 5 36 17 164 128 39 8 . . Melee . | . . . . . . . . . . . . . . . . . . . . . Projectile 90 | . . . . . . 11 . . . 3 5 5 4 17 13 10 14 8 . . AOE 444 | . 44 2 . . . 58 . . . . 14 . 32 . 151 118 25 . . . Terrain Rammed . | . . . . . . . . . . . . . . . . . . . . . Walls Destroyed . | . . . . . . . . . . . . . . . . . . . . . Machines Disabled . | . . . . . . . . . . . . . . . . . . . . . Actions | -11 -10 -9 -9 -9 -9 -6 -6 -6 -6 -5 -5 -5 -5 -5 -5 -4 -4 -4 -4 -3 --------- Run | Yrd Mat Mat Sto Rec Scr Fac Low Low Dat Pro Fac Ext Cet Arc Hub Fac Upp Upp War Pro Total 12099 | 6 706 442 1248 1096 1156 1241 335 354 141 261 736 1103 611 267 119 813 548 232 398 286 Wait 1206 | . . 22 125 29 48 119 . 111 56 . 80 73 253 23 . 56 140 40 . 31 Move 9253 | . 676 327 876 871 1066 919 311 229 85 235 595 919 267 190 101 564 305 172 355 190 Hop . | . . . . . . . . . . . . . . . . . . . . . Pick Up 178 | . 7 17 16 1 14 19 3 1 . 3 14 13 15 3 . 30 8 . 11 3 Fast Attach 75 | . 4 3 12 . 3 7 2 . . 1 2 9 4 5 . 9 4 4 5 1 Attach 86 | 2 . 4 1 . . 14 4 . . 2 5 1 1 . 1 19 18 . 5 9 Detach 21 | 2 . . . . . 2 . . . . 3 1 . . . 5 5 . 1 2 Swap 117 | . 1 10 33 2 5 25 2 . . . 5 6 8 1 1 12 3 . 3 . Drop 187 | 2 3 11 36 2 20 18 1 1 . . 10 23 23 6 . 16 6 . 7 2 Fire 838 | . 14 48 141 90 . 118 12 12 . 20 22 34 40 39 16 102 59 16 7 48 Melee . | . . . . . . . . . . . . . . . . . . . . . Ram . | . . . . . . . . . . . . . . . . . . . . . Kick . | . . . . . . . . . . . . . . . . . . . . . Crush 16 | . 1 . 8 1 . . . . . . . 2 . . . . . . 4 . Escape Stasis . | . . . . . . . . . . . . . . . . . . . . . Rewire 122 | . . . . 100 . . . . . . . 22 . . . . . . . . Trap . | . . . . . . . . . . . . . . . . . . . . . Miscellaneous . | . . . . . . . . . . . . . . . . . . . . . Route ------- -11/Scrapyard -10/Materials (discovered 5 exits: *Mat x3 / [*Min] / Sub) -9/Materials (discovered 3 exits: *Min x2 / *Sto) -9/Storage (discovered 2 exits: [*Mat] / *Rec) -9/Recycling (discovered 2 exits: [*Fac] / *Scr) -9/Scraptown (discovered 2 exits: *Fac x2) -6/Factory (discovered 3 exits: *Fac / *Low x2) -6/Lower Caves -6/Lower Caves -6/Data Miner -5/Proximity Caves -5/Factory (discovered 5 exits: *Fac / Upp x2 / *Ext x2) -5/Extension (discovered 2 exits: *Fac / *Cet) -5/Cetus (discovered 2 exits: *Fac / [*Arc]) -5/Archives (discovered 2 exits: *Hub x2) -5/Hub_04(d) -4/Factory (discovered 2 exits: *Upp x2) -4/Upper Caves -4/Upper Caves -4/Warlord -3/Proximity Caves History --------- Turn | Location | Event 6 | -11/Scrapyard | Discovered new exit (range 0) 6 | -11/Scrapyard | Entered Materials 126 | -10/Materials | Discovered new exit (range 12) 175 | -10/Materials | Destroyed 11 combat bots 316 | -10/Materials | Build established: Mutant 454 | -10/Materials | Learned 2 Storage zone layouts 532 | -10/Materials | Learned location of 1 exit from Recycling 535 | -10/Materials | Discovered new exit (range 15) 661 | -10/Materials | Learned 2 Storage zone layouts 674 | -10/Materials | Discovered new exit (range 7) 771 | -10/Materials | Identified exit to Subcaves 771 | -10/Materials | Identified exit to Materials 1389 | -10/Materials | Entered another Materials area 1389 | -9/Materials | Evolved 2 slots: Propulsion x1, Utility x1 1390 | -9/Materials | Identified exit to Mines 1390 | -9/Materials | Identified exit to Storage 1994 | -9/Materials | Build established: Scavenger-Mutant 2113 | -9/Materials | Entered Storage 2114 | -9/Storage | Identified exit to Recycling 2558 | -9/Storage | Garrison activated, responded to threat 3304 | -9/Storage | Core integrity fell below 50% 3773 | -9/Storage | Discovered new exit (range 9) 4392 | -9/Storage | Learned Materials garrison access intel 4422 | -9/Storage | Repaired Cld. Ion Engine 4443 | -9/Storage | Loaded intel: 23 non-interactive machine locations 4479 | -9/Storage | Repaired Lgt. Treads 4485 | -9/Storage | Learned location of Zion (-7) 4518 | -9/Storage | Learned location of 2 exits from Materials 4643 | -9/Storage | Used back door to open Recycling access 4650 | -9/Storage | Entered Recycling 4651 | -9/Recycling | Identified exit to Scraptown 5253 | -9/Recycling | Build established: Mutant 6354 | -9/Recycling | Discovered new exit (range 15) 6393 | -9/Recycling | Build established: Commander-Mutant 7058 | -9/Recycling | Scanned before Scraplab entrance 7094 | -9/Recycling | Entered Scraplab 7147 | -9/Recycling | Entered Scraptown 7147 | -9/Scraptown | Accompanied by 7 allies 7442 | -9/Scraptown | Visited Science Testing Area 7826 | -9/Scraptown | Heard Great Nut preacher, LISTEN AND RECITE! 8244 | -9/Scraptown | Discovered new exit (range 13) 8319 | -9/Scraptown | Visited Assassins FH 8362 | -9/Scraptown | Visited Cave Peace 8412 | -9/Scraptown | Visited Fellowship of the Rings 8492 | -9/Scraptown | Visited The Evicted 8580 | -9/Scraptown | Visited Spacefarers 8710 | -9/Scraptown | Visited Red Mages 8825 | -9/Scraptown | Visited UFD Registry 8825 | -9/Scraptown | Registered with UFD as "Bladebucket" 8906 | -9/Scraptown | Visited A0-MCA Data Center 8920 | -9/Scraptown | Given a B+ rating by A0-MCA 8926 | -9/Scraptown | Found A0-MCA's Component Scanner 8970 | -9/Scraptown | Visited Junk Repository 9063 | -9/Scraptown | Visited Curators Association 9149 | -9/Scraptown | Visited Observation Area 9247 | -9/Scraptown | Visited Infowarlord's Domain 9299 | -9/Scraptown | Visited Abandonware Association 9328 | -9/Scraptown | Learned abandonware demo "REVENGE.EXE" 9328 | -9/Scraptown | Learned abandonware demo "MELTYB.EXE" 9383 | -9/Scraptown | Visited Scrapoid Pod Storage 9431 | -9/Scraptown | Visited Derelict Rescue Squad 9479 | -9/Scraptown | Visited Modified Component R&D 9745 | -9/Scraptown | Found Scrap Suit 9780 | -9/Scraptown | Discovered new exit (range 3) 9787 | -9/Scraptown | Entered Factory 9787 | -6/Factory | Evolved 6 slots: Power x1, Propulsion x1, Utility x3, Weapon x1 10084 | -6/Factory | Build established: Scrapper 10464 | -6/Factory | Discovered new exit (range 7) 10686 | -6/Factory | Identified exit to Lower Caves 10695 | -6/Factory | Build established: Scavenger-Scrapper 11127 | -6/Factory | Build established: Scavenger-Tank 11530 | -6/Factory | Spotted B-75 Beast 11546 | -6/Factory | Destroyed B-75 Beast 11742 | -6/Factory | Fabricated Hvy. Treads? 12006 | -6/Factory | Lost 5 parts (2p2n1w) 12009 | -6/Factory | Destroyed 9 combat bots 12188 | -6/Factory | Lost 5 parts (2n2u1w) 12217 | -6/Factory | Entered Lower Caves 12462 | -6/Lower Caves | Identified exit to Lower Caves 12613 | -6/Lower Caves | Spotted B-75 Beast 12631 | -6/Lower Caves | Destroyed B-75 Beast 12904 | -6/Lower Caves | Entered another Lower Caves area 13042 | -6/Lower Caves | Learned location of Extension (-5) 13058 | -6/Lower Caves | Spotted B-75 Beast 13244 | -6/Lower Caves | Learned 4 Factory zone layouts 13389 | -6/Lower Caves | Build established: Scavenger-Mutant 13392 | -6/Lower Caves | Discovered new exit (range 6) 13417 | -6/Lower Caves | Entered Data Miner 13417 | -6/Data Miner | Discovered new exit (range 6) 13448 | -6/Data Miner | Met Data Miner 13539 | -6/Data Miner | Received God Mode back door access code from Data Miner 13612 | -6/Data Miner | Entered Proximity Caves 13614 | -5/Proximity Caves | Attracted the attention of an 0b10 checkpoint 13640 | -5/Proximity Caves | Learned Factory stockpile data 13923 | -5/Proximity Caves | Build established: Scavenger-Tank 14043 | -5/Proximity Caves | Discovered new exit (range 10) 14062 | -5/Proximity Caves | Entered Factory 14062 | -5/Factory | Evolved 2 slots: Utility x2 14063 | -5/Factory | Identified exit to Factory 14185 | -5/Factory | Incoming investigation squad redirected 14210 | -5/Factory | Scrapoid reinforcements arrived 14218 | -5/Factory | Fabricated Hvy. Treads? 14225 | -5/Factory | Incoming investigation squad redirected 14354 | -5/Factory | Spotted B-75 Beast 14363 | -5/Factory | Allies destroyed B-75 Beast 14678 | -5/Factory | Garrison activated, responded to threat 14732 | -5/Factory | Fabricated Hvy. Treads? 14829 | -5/Factory | Identified exit to Upper Caves 14829 | -5/Factory | Identified exit to Extension 15194 | -5/Factory | Entered Extension 15194 | -5/Extension | Accompanied by 2 allies 15209 | -5/Extension | Disrupted transfer network 15540 | -5/Extension | Rescued A7 15561 | -5/Extension | Rescued a captive Derelict 15685 | -5/Extension | Rescued a captive Derelict 15766 | -5/Extension | Rescued a captive Derelict 15918 | -5/Extension | Build established: Hacker-Tank 16085 | -5/Extension | Spotted B-75 Beast 16095 | -5/Extension | Destroyed B-75 Beast 16106 | -5/Extension | Spotted B-75 Beast 16128 | -5/Extension | Destroyed B-75 Beast 16276 | -5/Extension | Rescued a captive Derelict 16277 | -5/Extension | Rescued a captive Derelict 16388 | -5/Extension | Rescued a captive Derelict 16389 | -5/Extension | Rescued a captive Derelict 16710 | -5/Extension | Rescued a captive Derelict 16710 | -5/Extension | Rescued a captive Derelict 16794 | -5/Extension | Discovered exit to Factory (range 10) 16795 | -5/Extension | Discovered new exit (range 6) 16945 | -5/Extension | Entered Cetus 16945 | -5/Cetus | Accompanied by 16 allies (A7) 16950 | -5/Cetus | Acquired a Cetus Manufacturing Module code from A7 16977 | -5/Cetus | Spotted Cetus Guard 16977 | -5/Cetus | Spotted Cetus Guard 16980 | -5/Cetus | Spotted Cetus Guard 16982 | -5/Cetus | Spotted Cetus Guard 16992 | -5/Cetus | Destroyed Cetus Guard 16994 | -5/Cetus | Allies destroyed Cetus Guard 16994 | -5/Cetus | Allies destroyed Cetus Guard 16998 | -5/Cetus | Allies destroyed Cetus Guard 17026 | -5/Cetus | Lost 3 allies 17045 | -5/Cetus | System corruption reached 10% 17115 | -5/Cetus | Build established: Commander-Tank 17292 | -5/Cetus | Started Cetus Manufacturing Module 17317 | -5/Cetus | Manufactured an Enhanced Grunt 17342 | -5/Cetus | Manufactured an Enhanced Grunt 17367 | -5/Cetus | Manufactured an Enhanced Grunt 17392 | -5/Cetus | Manufactured an Enhanced Grunt 17417 | -5/Cetus | Manufactured an Enhanced Grunt 17486 | -5/Cetus | Discovered new exit (range 15) 17548 | -5/Cetus | Spotted Cetus Guard 17548 | -5/Cetus | Spotted Cetus Guard 17551 | -5/Cetus | Spotted Cetus Guard 17551 | -5/Cetus | Spotted Cetus Guard 17560 | -5/Cetus | Destroyed Cetus Guard 17567 | -5/Cetus | Destroyed Cetus Guard 17585 | -5/Cetus | Destroyed Cetus Guard 17586 | -5/Cetus | Allies destroyed Cetus Guard 17598 | -5/Cetus | Discovered exit to Factory (range 15) 17612 | -5/Cetus | Lost 3 allies 17695 | -5/Cetus | Security sweep announced 17704 | -5/Cetus | Murdered A7 17706 | -5/Cetus | Extracted ID and sensor layout for unrecognized location from A7's data core 17776 | -5/Cetus | Found Med. Regenerative Plating 17801 | -5/Cetus | Met Revision 17 17804 | -5/Cetus | Murdered Revision 17 17831 | -5/Cetus | System corruption reached 30% 17934 | -5/Cetus | Entered Archives 17934 | -5/Archives | Accompanied by 11 allies 18004 | -5/Archives | Discovered new exit (range 16) 18257 | -5/Archives | Discovered new exit (range 14) 18402 | -5/Archives | Entered Hub_04(d) 18402 | -5/Hub_04(d) | Accompanied by 10 allies 18482 | -5/Hub_04(d) | Build established: Scavenger-Tank 18539 | -5/Hub_04(d) | Discovered exit to Factory (range 15) 18569 | -5/Hub_04(d) | Network Hub disabled 18572 | -5/Hub_04(d) | Spotted Lightning 18572 | -5/Hub_04(d) | Spotted Lightning 18572 | -5/Hub_04(d) | Spotted Lightning 18590 | -5/Hub_04(d) | Spotted Lightning 18592 | -5/Hub_04(d) | Spotted Lightning 18594 | -5/Hub_04(d) | Incoming assault squad redirected 18599 | -5/Hub_04(d) | Allies destroyed Lightning 18602 | -5/Hub_04(d) | Spotted Lightning 18618 | -5/Hub_04(d) | Entered Factory 18618 | -4/Factory | Evolved 2 slots: Utility x2 18637 | -4/Factory | Lost 7 allies 18911 | -4/Factory | First assault squad dispatched 19010 | -4/Factory | Incoming assault squad redirected 19122 | -4/Factory | Identified exit to Upper Caves 19242 | -4/Factory | System corruption reached 10% 19295 | -4/Factory | Lost 7 parts (2p1n2u2w) 19298 | -4/Factory | Destroyed 8 combat bots 19512 | -4/Factory | Incoming assault squad redirected 19573 | -4/Factory | Lost 8 parts (2p2n1u3w) 19693 | -4/Factory | Scrapoid reinforcements arrived 19700 | -4/Factory | Incoming investigation squad redirected 19708 | -4/Factory | Core integrity fell below 50% 20025 | -4/Factory | Lost 4 allies 20089 | -4/Factory | Entered Upper Caves 20369 | -4/Upper Caves | Spotted B-86 Titan 20428 | -4/Upper Caves | System corruption reached 30% 20452 | -4/Upper Caves | Destroyed B-86 Titan 20468 | -4/Upper Caves | Lost 11 parts (2p2n3u4w) 20855 | -4/Upper Caves | Build established: Hacker-Mutant 20959 | -4/Upper Caves | Discovered new exit (range 16) 20983 | -4/Upper Caves | Ambushed by wild Derelicts 21013 | -4/Upper Caves | Identified exit to Upper Caves 21063 | -4/Upper Caves | Entered another Upper Caves area 21365 | -4/Upper Caves | Build established: Hacker-Gunner 21417 | -4/Upper Caves | Discovered new exit (range 11) 21501 | -4/Upper Caves | Identified exit to Warlord 21543 | -4/Upper Caves | Entered Warlord 21629 | -4/Warlord | System corruption cleaned by Quarantine Array 21784 | -4/Warlord | Build established: Scavenger-Gunner 21800 | -4/Warlord | Rebuked by Warlord 21816 | -4/Warlord | Warlord's base attacked by MAIN.C 21981 | -4/Warlord | Found Prototype Reactor 21994 | -4/Warlord | Found Prototype Device 21997 | -4/Warlord | Found Prototype Processor 22003 | -4/Warlord | Found Prototype Hackware 22016 | -4/Warlord | Found Exp. Targeting Computer 22166 | -4/Warlord | Warlord forces counterattacked 22187 | -4/Warlord | Spotted Striker 22235 | -4/Warlord | Lost 8 allies 22317 | -4/Warlord | Lost 9 allies 22329 | -4/Warlord | Spotted Executioner 22332 | -4/Warlord | P-70 Sage assimilated allied 6X-LO9(b) 22341 | -4/Warlord | Discovered new exit (range 15) 22366 | -4/Warlord | Core integrity fell below 20% 22367 | -4/Warlord | Lost 6 allies 22374 | -4/Warlord | Identified exit to Proximity Caves 22376 | -4/Warlord | Entered Proximity Caves 22379 | -3/Proximity Caves | Identified Exp. Focal Shield 22398 | -3/Proximity Caves | Lost 6 parts (1p1n2u2w) 22465 | -3/Proximity Caves | Lost 4 parts (1n2u1w) 22649 | -3/Proximity Caves | Spotter reported a threat 22706 | -3/Proximity Caves | Spotter reported a threat 22771 | -3/Proximity Caves | Build established: Scavenger-Mutant 22833 | -3/Proximity Caves | Spotter reported a threat 22841 | -3/Proximity Caves | Spotter reported a threat 22995 | -3/Proximity Caves | Destroyed by G-73 Enforcer with Heavy Laser Last Messages --------------- 22967_ Overheating: Matter decay (-23). 22968_ G-67 Veteran overheating. 22969_ Overheating: Centrium Medium Armor Plating damaged (-210). 22969_ G-67 Veteran heat spikes uncontrollably. 22969_ G-67 Veteran overheating. 22978_ 8W=B:IY6A9O/O6GJ1R==GLORF0LIOTLPPXCCSOH 22978_ G-67 Veteran heat spikes uncontrollably. 22978_ G-67 Veteran overheating. 22979_ G-67 Veteran heat short circuits Plasma Rifle. 22979_ G-67 Veteran overheating. 22980_ G-67 Veteran heat damages Broken Adv. Heat Sink, Flexi-carbon Leg, Field Laser. 22980_ G-67 Veteran overheating. 22981_ G-67 Veteran heat spikes uncontrollably. 22981_ Imp. Treads destroyed. 22981_ G-67 Veteran overheating. 22985_ G-67 Veteran heat damages Broken Plasma Rifle, Lgt. Antimatter Reactor, Field Laser. 22986_ G-67 Veteran overheating. Map ----- +----------------------------------------------------+ | ??## #### ##?????????????????????????????? | | ???## ##??# ##??????????????????????????????? | | ###?# ##??# ##???????????????????????????????? | | # ## ######????????????????????????????????? | | ##????????????????????????????????? | | #????????????????????????????????? | | #????????????????????????????????? | | #+##+## ##????????????????????????????????? | | # ##?????????????????????????????????? | | #??????????????????????????????????? | | "# #??## ???? "???????????????????????? | | "# ## ##?# ???? ???????????????????????? | | # #?##??# ???? ??????????????????????? | | """# ## ##?# #???# #??????????????????????? | | """# # #?# #???# #??????????????????????? | | """# # #?# #??## ###????????????????????? | | " """# # #?# #??# #????????????????????? | | # ##### #??# #### #?????????????????????? | | #??# ## #?????????????????????? | | #?## % #?????????????????????? | | ## ### % #?????????????????????? | | ###### ## #??????????????????????? | | ####?# g # #?????????#????????????? | | ### ### | # #????? #????????????? | | ??## ### # ## #????????????? | | ???## #?## g @ #???????????? | | ????## ##??## ## ##???????????????? | | ?????# ##????###### ### ##????????????????? | | ?????# ##??????????## ##?? ##?????????????????? | | ?????###????????????####???? ##??????????????????? | | ?????????????????????????????#???????????????????? | | ?????????????????????????????????????????????????? | | ?????????????????????????????????????????????????? | | ?????????????????????????????????????????????????? | | ?????????????????????????????????????????????????? | | ?????????????????????????????????????????????????? | | ?????????????????????????????????????????????????? | | ?????????????????????????????????????????????????? | | ?????????????????????????????????????????????????? | | ?????????????????????????????????????????????????? | | ?????????????????????????????????????????????????? | | ?????????????????????????????????????????????????? | | ?????????????????????????????????????????????????? | | ?????????????????????????????????????????????????? | | ?????????????????????????????????????????????????? | | ?????????????????????????????????????????????????? | | ?????????????????????????????????????????????????? | | ?????????????????????????????????????????????????? | | ?????????????????????????????????????????????????? | | ?????????????????????????????????????????????????? | +----------------------------------------------------+ Best States ------------- Heat Dissipation 83 Coolant Potential 100 Energy Generation 43 Energy Capacity 600 Matter Stores 300 Matter Capacity 300 Sight Range 16 Robot Scan Range 16 Terrain Scan Density 10 Jamming Range 14 Armor Coverage 900 Resistance: KI 50 Resistance: TH 20 Resistance: EX 20 Resistance: EM 45 Resistance: I 20 Resistance: S 20 Resistance: P 20 Power Shielding 33 Propulsion Shielding 33 Weapon Cycling 20 Evasion (%) 40 Recoil Reduction 8 Offensive Hacking 34 Defensive Hacking 12 Item Schematics ----------------- Med. Treads | -9/Storage | Hacked Med. Armor Plating | -9/Storage | Hacked Hvy. Treads | -6/Factory | Hacked Ovr. Beamcaster | -6/Factory | Scanalyzed Ovr. Pulse Rifle | -6/Factory | Scanalyzed Adv. Force Field | -6/Data Miner | Free HERF Cannon | -6/Data Miner | Free Adv. Datajack | -6/Data Miner | Free Imp. Remote Shield | -6/Data Miner | Free Myomer Leg | -6/Data Miner | Free Plasma Sword | -6/Data Miner | Free Imp. Energy Well | -6/Data Miner | Free Enh. Flexi-carbon Leg | -6/Data Miner | Free Lgt. Regenerative Plating | -6/Data Miner | Free Combat Drone Bay | -6/Data Miner | Free Rnf. Deuterium Engine | -5/Factory | Scanalyzed Imp. Hacking Suite | -5/Factory | Scanalyzed Hcp. Storage Unit | -5/Factory | Scanalyzed Robot Schematics ------------------ G-34 Mercenary | -9/Storage | Hacked G-50 Soldier | -6/Factory | Hacked H-66 Slayer | -6/Data Miner | Free L-61 Swordsman | -6/Data Miner | Free B-60 Warrior | -6/Data Miner | Free X-67 Chaingunner | -6/Data Miner | Free Y-64 Sentinel | -6/Data Miner | Free Y-54 Guardian | -6/Data Miner | Free Fabricated ------------ Hvy. Treads | x1 | -6/Factory Hvy. Treads | x1 | -5/Factory Hvy. Treads | x1 | -5/Factory Alien Tech Used ----------------- None Achievements -------------- None Challenges ------------ None Game ------ Seed ArcLinkedSource Manual? 0 Play Time 02:43:17 Cumulative 419.2 hours Start 2024.09.25 @ 15:43:00 End 2024.09.25 @ 19:32:34 Sessions 1 Manual Loads 0 Difficulty Adventurer Special Mode None Game No. 306 Rogue 63 Adventurer 217 Explorer 26 Win Type - Total 2 Types 2/0/0/0/0/0/0/0/0 Lore% 82 Gallery% 80 Achievement% 69 Wizard Run 0 Options --------- Layout 2 ASCII 0 Keyboard 0 Movement Mouse Keybinds 0 Fullscreen 0 Font 18/CogNarrow Map View 64x51 Zoom Use 10% Tactical HUD 1 Map Filters NONE Filters BRIGHTNESS(115)|SATURATION(100)|LOW_CONTRAST(0,16,30) Steam 1 RUN: 3dce930c-8ae3-44f0-8ecf-2a35a9bc3e49